bitfinex/quotes_ETHUSD_20230116
["timestamp","ask_amount","ask_price","bid_price","bid_amount"]
[1673856658692,17.67527304,1531.6,1531.5,0.22867153]
[1673856658862,17.67527304,1531.6,1531.5,1.53e-06]
[1673856659073,17.67527304,1531.6,1530.3,4.18383482]
[1673856659074,17.67527304,1531.6,1530.3,7.74041]
[1673856659288,3.45638044,1530.4,1530.2,6.53482]
[1673856659551,3.13013731,1530.4,1530.2,13.06991]
[1673856659759,3.13013731,1530.4,1530.0,5.715239]
[1673856660076,3.13013731,1530.4,1530.0,12.250979]
[1673856660401,3.13013731,1530.4,1530.0,5.715239]
[1673856660713,3.13013731,1530.4,1530.0,1.39282148]
[1673856661020,3.12687731,1530.4,1530.0,1.39282148]
[1673856661758,1.209,1531.3,1530.0,1.39282148]
[1673856661759,1.209,1531.3,1530.0,8.07097418]
[1673856661969,1.213,1532.0,1530.1,4.19884232]
[1673856661970,0.40248626,1531.6,1530.1,4.19884232]
[1673856662119,6.52654,1532.3,1530.5,26.13447]
[1673856662327,1.213,1532.4,1530.6,4.17062912]
[1673856662643,13.49748383,1532.7,1530.6,4.17062912]
[1673856662644,1.56013271,1532.8,1531.1,19.59324]
[1673856662909,1.56013271,1532.8,1531.6,26.11536]
[1673856662910,0.64633918,1532.8,1531.6,26.11536]
[1673856663075,1.215,1533.2,1531.7,3.0]
[1673856663293,5.3104106,1533.6,1531.8,0.3]
[1673856663503,5.0196121,1533.9,1532.3,26.10385]
[1673856663723,20.70085228,1534.0,1532.3,26.10385]
[1673856663724,19.38016198,1534.0,1532.4,3.0]
[1673856663923,0.03405,1533.9,1532.8,26.0949]
[1673856664176,0.03405,1533.9,1532.9,3.0]
[1673856664345,0.03405,1533.9,1533.2,19.5669]
[1673856664694,19.38016198,1534.0,1533.4,13.04222]
[1673856664904,19.38016198,1534.0,1533.6,13.04078]
[1673856665075,0.836279,1533.8,1533.6,13.04078]
[1673856665460,1.21,1535.1,1534.0,6.51877]
[1673856665461,4.18840028,1534.8,1534.0,6.51877]
[1673856665608,0.59773,1535.4,1534.1,3.0]
[1673856665954,0.05196,1535.3,1534.2,10.70624028]
[1673856666167,0.05196,1535.3,1534.3,2.98395041]
[1673856666337,0.05196,1535.3,1534.5,6.5165]
[1673856666544,0.05196,1535.3,1534.6,0.65165]
[1673856666800,0.05196,1535.3,1534.7,6.51585]
[1673856667113,0.59773,1535.4,1534.7,6.51585]
[1673856667265,4.16641831,1536.5,1534.7,61.75876611]
[1673856667474,1.204,1536.6,1534.7,61.75876611]
[1673856667475,1.204,1536.6,1534.8,4.17347294]
[1673856667688,15.204,1536.9,1535.3,13.02646]
[1673856667933,0.01256265,1537.2,1535.3,8.71844501]
[1673856668157,0.01256265,1537.2,1535.4,3.0]
[1673856668483,0.01256265,1537.2,1535.9,13.02134]
[1673856668652,0.01256265,1537.2,1536.0,3.0]
[1673856668845,14.01256265,1537.2,1535.9,7.71161]
[1673856669054,14.0,1536.8,1535.7,6.51145]
[1673856669263,14.0,1536.6,1535.1,6.51408]
[1673856669588,14.0,1536.6,1534.8,1.204]
[1673856669589,14.0,1536.0,1534.8,1.204]
[1673856669802,0.03514,1535.9,1534.9,0.41734729]
[1673856670029,0.03514,1535.9,1535.0,13.0289]
[1673856670239,0.03514,1535.9,1535.1,6.51396]
[1673856670575,6.46425591,1534.9,1534.7,2.5]
[1673856670792,1.27791,1534.8,1534.7,2.5]
[1673856670950,0.03991,1534.8,1533.9,7.72108]
[1673856671320,4.85775995,1534.8,1533.6,70.52636648]
[1673856671475,14.0,1534.6,1533.6,64.00579648]
[1673856671679,14.0,1533.9,1533.2,1.19]
[1673856671906,14.0,1534.1,1533.7,0.05866]
[1673856672133,6.51899,1534.0,1533.7,0.05866]
[1673856672355,14.0,1534.1,1533.7,0.05866]
[1673856672778,1.519,1534.1,1533.0,1.197]
[1673856673060,14.23,1534.0,1533.1,0.05868]
[1673856673227,14.0,1534.0,1533.1,0.05868]
[1673856673540,1.19,1534.2,1533.1,0.05868]
[1673856673696,6.51679,1534.5,1533.1,7.358863]
[1673856674071,4.15583264,1534.6,1533.1,7.358863]
[1673856674276,3.27278678,1534.5,1533.1,7.358863]
[1673856674450,14.0,1534.6,1533.1,7.358863]
[1673856674665,1.19,1534.8,1533.1,7.358863]
[1673856675011,6.51737,1534.4,1533.1,6.58116]
[1673856675168,10.67292264,1534.5,1533.2,6.52206]
[1673856675378,14.0,1534.6,1533.2,3.99302457]
[1673856675646,15.19,1534.8,1533.6,6.52048]
[1673856675805,0.01923656,1534.8,1533.7,0.05866]
[1673856676010,0.01923656,1534.8,1534.0,6.51877]
[1673856676242,0.01923656,1534.8,1534.0,13.03754]
[1673856677498,0.01923656,1534.8,1534.1,3.05865]
[1673856677736,0.01923656,1534.8,1534.3,13.03516]
[1673856679092,5.31937644,1535.9,1534.4,3.05863]
[1673856679333,1.204,1536.3,1534.4,3.05863]
[1673856679334,15.204,1536.5,1534.8,19.54587]
[1673856679541,5.3664386,1536.5,1534.9,3.05861]
[1673856679705,19.3664386,1536.5,1535.3,19.53912]
[1673856679901,19.3664386,1536.5,1535.3,18.29849559]
[1673856679902,15.204,1536.5,1535.3,18.29849559]
[1673856680258,15.204,1536.5,1535.3,5.27241559]
[1673856680451,19.38132184,1536.5,1535.5,6.51233]
[1673856680631,3.10594559,1536.8,1535.5,6.57092]
[1673856680840,1.225,1536.8,1535.6,0.05859]
[1673856681055,1.225,1536.8,1535.9,6.51058]
[1673856681263,1.225,1536.9,1535.9,6.51058]
[1673856681514,1.225,1536.9,1536.0,0.651058]
[1673856681683,14.0,1536.8,1535.7,1.231]
[1673856681900,14.0,1536.6,1535.7,6.51143]
[1673856682355,5.40232184,1536.9,1535.7,6.51143]
[1673856682547,4.18988449,1537.2,1536.1,13.01943]
[1673856682753,0.01256265,1537.2,1536.1,6.50961]
[1673856682943,0.75411368,1536.5,1536.3,13.01828]
[1673856683153,0.74411368,1536.5,1536.3,6.50914]
[1673856683994,3.68e-06,1536.5,1536.3,6.50914]
[1673856684488,3.68e-06,1536.5,1536.2,11.33672833]
[1673856684489,3.68e-06,1536.5,1536.2,6.50924]
[1673856684812,3.68e-06,1536.5,1536.0,6.51031]
[1673856685020,3.68e-06,1536.5,1535.4,8.27081156]
[1673856685335,4.16152323,1536.5,1535.5,0.82708116]
[1673856685519,3.68e-06,1536.5,1535.5,0.82708116]
[1673856685733,3.68e-06,1536.5,1535.5,11.50339104]
[1673856685903,3.68e-06,1536.5,1535.6,4.16390988]
[1673856686113,3.68e-06,1536.5,1535.8,26.04384]
[1673856686323,3.68e-06,1536.5,1535.9,6.82687388]
[1673856686589,3.68e-06,1536.5,1536.0,19.53021]
[1673856686918,3.68e-06,1536.5,1536.0,29.65854679]
[1673856687273,3.68e-06,1536.5,1536.1,0.67649679]
[1673856687483,3.68e-06,1536.5,1536.2,13.01896]
[1673856687744,3.68e-06,1536.5,1536.3,4.301896]
[1673856688057,0.01256265,1537.2,1536.4,13.01744]
[1673856688275,0.01256265,1537.2,1536.5,3.0]
[1673856688427,0.01256265,1537.2,1536.7,19.5222]
[1673856689059,0.01256265,1537.2,1536.8,2.06493906]
[1673856689268,0.01604959,1537.4,1536.9,1.75833066]
[1673856689485,0.01604959,1537.4,1537.0,22.79132678]
[1673856689695,0.01604959,1537.4,1537.1,3.0]
[1673856689955,0.0123576,1537.5,1537.2,13.01066]
[1673856690104,0.0123576,1537.5,1537.3,3.0]
[1673856690317,0.0123576,1537.5,1537.4,10.07726678]
[1673856690701,0.0123576,1537.5,1537.1,7.76344]
[1673856690702,7.05149568,1537.3,1537.1,7.76344]
[1673856690885,7.05149568,1537.3,1537.1,6.50544]
[1673856691214,4.15143086,1538.0,1537.4,2.17266928]
[1673856691215,0.02357047,1538.0,1537.4,2.17266928]
[1673856691369,0.02357047,1538.0,1537.5,13.00744]
[1673856691578,0.02357047,1538.0,1537.5,13.05705885]
[1673856692169,4.7e-07,1538.0,1537.5,13.05705885]
[1673856692386,4.7e-07,1538.0,1537.7,19.50939]
[1673856692599,4.7e-07,1538.0,1537.9,15.15730327]
[1673856693009,4.7e-07,1538.0,1537.9,2.13884944]
[1673856693417,4.35e-06,1538.2,1537.9,8.64121944]
[1673856694042,4.35e-06,1538.2,1538.1,2.1617097]
[1673856694306,4.35e-06,1538.2,1538.1,21.6662697]
[1673856694479,4.35e-06,1538.2,1538.1,23.83289667]
[1673856694691,4.35e-06,1538.2,1538.1,15.1647497]
[1673856694927,9.43650762,1540.3,1538.6,6.49933]
[1673856695261,9.43650762,1540.3,1539.0,6.49759]
[1673856695262,21.08924,1540.1,1539.0,6.49759]
[1673856695426,21.08924,1540.1,1539.1,9.24967755]
[1673856695634,0.5959,1540.1,1539.4,2.1100634]
[1673856695855,0.5959,1540.1,1539.5,8.59935704]
[1673856696069,0.5959,1540.1,1539.7,2.11342389]
[1673856696295,0.5959,1540.1,1539.4,7.75683]
[1673856696485,0.5959,1540.1,1539.6,6.49504]
[1673856696700,0.5959,1540.1,1539.9,2.12120635]
[1673856697125,7.0891,1540.1,1539.6,0.95344418]
[1673856697317,7.0891,1540.1,1538.9,6.49801]
[1673856697318,21.0891,1540.1,1538.9,6.49801]
[1673856697528,1.261,1539.7,1538.3,7.76157]
[1673856697782,6.49532,1539.6,1538.5,6.49972]
[1673856697939,15.8569,1540.1,1538.5,6.49972]
[1673856697940,1.24223918,1540.1,1538.5,6.49972]
[1673856698148,0.5959,1540.1,1538.5,12.99955]
[1673856698358,0.5959,1540.1,1538.6,4.21312071]
[1673856698684,0.5959,1540.1,1539.0,25.99004]
[1673856698887,0.5959,1540.1,1539.1,2.599004]
[1673856699096,0.5959,1540.1,1539.4,19.48809]
[1673856700147,0.5959,1540.1,1539.4,18.48809]
[1673856700606,0.5959,1540.1,1539.6,25.9794]
[1673856700818,0.5959,1540.1,1539.6,19.48455]
[1673856701005,0.5959,1540.1,1539.8,19.48278]
[1673856701220,0.0113193,1540.3,1539.8,16.04687134]
[1673856703136,0.03161628,1540.9,1539.9,3.0]
[1673856703349,0.03161628,1540.9,1540.2,19.47798]
[1673856703568,0.03161628,1540.9,1540.3,1.947798]
[1673856703718,0.03161628,1540.9,1540.4,6.4918]
[1673856704613,0.03161628,1540.9,1540.3,6.49193]
[1673856704780,0.03161628,1540.9,1540.1,6.49298]
[1673856704990,0.03161628,1540.9,1540.3,6.49193]
[1673856705614,0.64633918,1540.8,1539.7,9.723185]
[1673856705865,0.03161628,1540.9,1539.8,6.49402]
[1673856706189,0.03161628,1540.9,1539.5,6.49524]
[1673856706357,14.0,1540.7,1539.4,6.49585]
[1673856706571,0.64633918,1540.8,1539.4,6.49585]
[1673856706796,0.03161628,1540.9,1539.9,19.48152]
[1673856707059,0.03161628,1540.9,1540.1,6.4927]
[1673856708504,0.03161628,1540.9,1539.5,1.288]
[1673856708658,6.49068,1540.7,1539.5,6.49522]
[1673856708870,7.2621774,1540.6,1539.5,6.49522]
[1673856709097,7.2621774,1540.6,1539.2,12.99366]
[1673856709098,4.2621774,1540.5,1539.2,12.99366]
[1673856709288,6.493,1540.2,1539.2,1.299366]
[1673856709497,6.4924,1540.3,1539.2,1.299366]
[1673856709761,3.0,1540.2,1539.2,6.49677]
[1673856709935,1.298,1540.7,1539.2,12.99365]
[1673856710150,1.298,1540.7,1539.2,17.18381937]
[1673856710500,1.298,1540.7,1539.7,19.48404]
[1673856711072,1.298,1540.7,1540.0,9.76610678]
[1673856711339,4.29530438,1539.9,1539.7,6.49468]
[1673856711844,4.29530438,1539.9,1539.4,6.49577]
[1673856712085,4.26947122,1540.3,1539.3,6.49604]
[1673856712257,0.03161628,1540.9,1539.7,12.98954]
[1673856712478,0.03161628,1540.9,1540.1,19.47911]
[1673856712808,6.28e-06,1540.9,1540.2,4.27769556]
[1673856713176,6.28e-06,1540.9,1540.1,9.49295]
[1673856713385,6.28e-06,1540.9,1540.1,7.27769556]
[1673856713595,6.28e-06,1540.9,1540.2,0.72776956]
[1673856713799,6.28e-06,1540.9,1540.1,3.0]
[1673856714046,6.28e-06,1540.9,1540.0,5.58169556]
[1673856714047,6.28e-06,1540.9,1540.0,1.304]
[1673856714447,6.28e-06,1540.9,1540.3,6.49196]
[1673856714704,6.48972628,1540.9,1540.1,6.49297]
[1673856714859,6.28e-06,1540.9,1540.1,6.49297]
[1673856715065,6.28e-06,1540.9,1540.1,12.98605]
[1673856715274,6.28e-06,1540.9,1539.4,7.145344]
[1673856715275,12.97962628,1540.9,1539.4,7.145344]
[1673856715537,12.97962628,1540.9,1538.8,10.58386086]
[1673856715538,6.708,1540.5,1538.8,10.58386086]
[1673856715745,6.708,1540.5,1538.6,1.309]
[1673856715746,8.0,1539.8,1538.7,6.4989]
[1673856715961,12.99148,1539.5,1538.5,6.49982]
[1673856716279,25.26917556,1539.5,1538.4,6.5001]
[1673856716449,25.26917556,1539.5,1538.0,7.81056]
[1673856716450,6.4977,1539.1,1538.0,6.50156]
[1673856716643,6.4977,1539.1,1538.1,0.650156]
[1673856716644,6.49849,1538.9,1538.1,0.650156]
[1673856717063,7.22238892,1539.0,1537.8,1.308]
[1673856717064,6.49799,1539.0,1537.8,1.308]
[1673856717322,0.72439892,1538.8,1537.8,1.308]
[1673856717536,1.308,1539.4,1537.8,1.308]
[1673856717537,1.307,1539.1,1537.8,1.308]
[1673856717902,7.80438,1539.1,1537.8,1.308]
[1673856718171,25.27245556,1539.1,1537.8,1.308]
[1673856718421,1.307,1539.2,1537.9,0.1308]
[1673856718951,12.08157556,1539.2,1537.9,0.1308]
[1673856719374,30.23209448,1539.1,1537.9,0.1308]
[1673856719583,1.308,1539.1,1537.9,13.13548]
[1673856720038,1.308,1539.6,1537.9,13.13548]
[1673856720255,14.0,1539.4,1538.0,1.313548]
[1673856720530,12.99562,1539.0,1537.9,6.50228]
[1673856720760,12.99562,1539.0,1537.6,7.81336]
[1673856720761,4.27769556,1538.9,1537.6,7.81336]
[1673856720973,6.708,1538.6,1537.6,1.31]
[1673856721202,6.708,1538.6,1537.3,1.309]
[1673856721203,13.00183,1538.3,1537.3,1.309]
[1673856721593,1.303,1538.6,1537.3,14.31878]
[1673856721792,1.303,1538.6,1537.7,6.50296]
[1673856722006,6.50006,1538.5,1537.6,6.50326]
[1673856722254,1.303,1538.6,1537.7,13.0064]
[1673856722443,7.80052,1539.1,1537.8,4.27769556]
[1673856722444,6.49752,1539.1,1537.8,4.27769556]
[1673856722635,7.79999,1539.2,1538.2,6.50102]
[1673856722995,7.79999,1539.2,1537.8,5.58769556]
[1673856722996,2.57987306,1538.1,1537.8,9.50262]
[1673856723318,2.57987306,1538.1,1537.9,6.5023]
[1673856723512,2.57987306,1538.1,1538.0,6.708]
[1673856723513,3.06e-06,1538.1,1538.0,6.708]
[1673856723720,0.1701633,1539.0,1538.0,16.20995]
[1673856723895,0.8775176,1539.5,1538.2,6.708]
[1673856724223,1.304,1540.8,1539.2,0.1701633]
[1673856724439,6.49018,1540.8,1539.7,13.20272]
[1673856724682,6.49018,1540.8,1539.7,6.49472]
[1673856724892,6.49018,1540.8,1539.8,0.649472]
[1673856725203,2.31551072,1540.9,1539.8,7.143712]
[1673856725418,6.28e-06,1540.9,1539.8,7.143712]
[1673856725627,6.49022,1540.8,1539.9,3.0]
[1673856725844,6.28e-06,1540.9,1539.9,3.0]
[1673856726001,6.28e-06,1540.9,1540.1,6.49305]
[1673856726200,6.28e-06,1540.9,1540.1,3.05712511]
[1673856726837,6.28e-06,1540.9,1540.1,16.25820511]
[1673856727049,6.28e-06,1540.9,1540.1,13.83267543]
[1673856727302,6.28e-06,1540.9,1540.2,3.0]
[1673856727514,6.28e-06,1540.9,1540.4,12.98354]
[1673856727943,6.28e-06,1540.9,1540.3,6.79221]
[1673856728250,6.28e-06,1540.9,1540.3,13.28442]
[1673856728459,6.28e-06,1540.9,1540.4,6.49177]
[1673856729079,6.28e-06,1540.9,1540.6,19.47267]
[1673856729290,6.28e-06,1540.9,1540.7,8.437497]
[1673856729466,6.28e-06,1540.9,1540.8,3.0]
[1673856729673,6.28e-06,1540.9,1540.8,7.77330203]
[1673856729922,6.28e-06,1540.9,1540.8,6.49013]
[1673856730932,6.28e-06,1540.9,1540.8,13.19813]
[1673856731143,6.28e-06,1540.9,1540.8,19.6597447]
[1673856731406,6.28e-06,1540.9,1540.8,9.9517447]
[1673856731579,6.28e-06,1540.9,1540.8,19.68826]
[1673856731797,6.28e-06,1540.9,1540.8,22.68826]
[1673856732140,6.28e-06,1540.9,1540.8,15.98026]
[1673856732632,1.3100967,1541.3,1540.8,15.98026]
[1673856732842,0.03521648,1541.5,1540.9,3.0]
[1673856733171,0.03739641,1541.7,1541.0,30.52576732]
[1673856733382,0.91379353,1542.4,1541.5,19.46079]
[1673856733605,0.64633918,1542.2,1541.1,10.81086]
[1673856733771,7.44261771,1541.9,1540.7,2.103091]
[1673856733978,6.48592,1541.8,1540.9,6.48929]
[1673856734640,6.48587,1541.9,1540.9,6.48929]
[1673856734834,6.48509,1542.0,1540.9,6.48929]
[1673856735188,10.67587313,1542.4,1541.1,9.055]
[1673856735189,2.39186927,1542.4,1541.1,9.055]
[1673856735498,0.0133818,1542.4,1541.8,6.48579]
[1673856736123,6.4967918,1542.4,1541.6,3.0]
[1673856736499,6.4967918,1542.4,1541.5,10.81016]
[1673856736959,0.0133818,1542.4,1541.5,10.81016]
[1673856737813,0.0133818,1542.4,1541.5,17.51816]
[1673856737983,0.0133818,1542.4,1542.3,3.27278678]
[1673856738196,2.57343966,1542.0,1541.7,6.48603]
[1673856738407,2.57343966,1542.0,1541.8,3.0]
[1673856738654,2.57343966,1542.0,1541.7,9.48626]
[1673856738829,2.57343966,1542.0,1541.7,3.0]
[1673856739018,9.05861966,1542.0,1541.2,2.2285]
[1673856739235,9.05861966,1542.0,1541.2,11.71683]
[1673856739442,9.07200146,1542.0,1541.2,11.71683]
[1673856739683,9.07200146,1542.0,1541.2,8.71683]
[1673856739910,13.39185036,1542.0,1541.2,0.9055]
[1673856740231,13.39185036,1542.0,1541.4,6.4873]
[1673856740232,2.58682146,1542.0,1541.4,6.4873]
[1673856740423,2.58682146,1542.0,1541.9,3.27278678]
[1673856741651,2.58682146,1542.0,1541.9,6.27278678]
[1673856742086,2.58682146,1542.0,1541.9,3.27278678]
[1673856742322,0.1584661,1542.2,1542.1,3.27278678]
[1673856742988,14.3649461,1542.2,1542.1,3.27278678]
[1673856743203,6.6427061,1542.2,1542.1,2.30764252]
[1673856743609,13.1269461,1542.2,1541.1,1.345]
[1673856743930,13.1269461,1542.2,1541.5,3.27278678]
[1673856743931,25.94284,1541.9,1541.5,3.27278678]
[1673856744117,32.42855,1541.9,1540.9,4.14971548]
[1673856744307,25.94872,1541.5,1540.8,1.323]
[1673856744518,0.03135,1541.4,1540.6,4.15009859]
[1673856744746,25.95496,1541.2,1540.5,1.354]
[1673856744999,0.03135,1541.1,1540.6,0.1354]
[1673856745309,12.979,1541.0,1540.3,5.50654078]
[1673856745468,0.03135,1540.9,1540.0,1.354]
[1673856745673,0.03135,1540.9,1539.8,4.15053961]
[1673856745674,25.9644,1540.6,1539.8,4.15053961]
[1673856745936,0.03135,1540.5,1539.7,3.854]
[1673856746252,12.98482,1540.3,1539.6,4.14652012]
[1673856746568,6.49209,1540.4,1539.7,0.41465201]
[1673856746569,0.03135,1540.2,1539.7,0.41465201]
[1673856746756,0.03135,1540.2,1539.7,5.103262]
[1673856746976,0.03135,1540.2,1539.8,0.54529254]
[1673856747171,6.52426,1540.2,1539.8,0.54529254]
[1673856747376,13.01717,1540.2,1539.4,1.359]
[1673856747600,13.01717,1540.2,1539.5,0.1359]
[1673856748097,13.01717,1540.2,1539.6,0.54529254]
[1673856748719,13.01717,1540.2,1539.5,0.1359]
[1673856749043,8.10017,1540.2,1539.5,0.1359]
[1673856749411,8.06917,1540.2,1539.5,0.1359]
[1673856749622,8.06917,1540.2,1539.3,0.1977698]
[1673856749623,0.13589999,1539.4,1539.3,0.1977698]
[1673856749943,19.62398999,1539.4,1539.3,0.1977698]
[1673856750293,19.62398999,1539.4,1538.8,0.18641852]
[1673856750294,26.12001999,1539.4,1538.8,0.18641852]
[1673856750538,12.99418,1539.2,1538.8,0.18641852]
[1673856750762,25.98836,1539.2,1538.8,0.18641852]
[1673856751679,25.98836,1539.2,1538.4,0.54529254]
[1673856751680,7.89773,1539.1,1538.1,5.4546195]
[1673856751913,34.49038918,1539.6,1538.3,8.84743]
[1673856751914,6.49549,1539.6,1538.3,8.84743]
[1673856752087,4.00258001,1539.5,1538.5,1.19670465]
[1673856752288,4.74666457,1540.1,1539.0,6.708]
[1673856752500,6.49196,1540.4,1539.4,6.708]
[1673856752761,6.49196,1540.4,1539.1,10.73379598]
[1673856752762,6.49283,1540.2,1539.5,0.6708]
[1673856752972,6.49283,1540.2,1539.2,5.59375598]
[1673856753145,6.49239,1540.3,1539.4,6.708]
[1673856753341,6.49081,1540.7,1540.0,0.5]
[1673856753555,6.49036,1540.8,1540.2,6.708]
[1673856754013,6.49036,1540.8,1540.3,3.0]
[1673856754200,8.90608829,1541.0,1540.4,0.3]
[1673856754401,2.41663829,1541.0,1540.4,0.3]
[1673856754601,8.90626829,1541.0,1540.4,0.3]
[1673856754813,8.90626829,1541.0,1540.4,2.8]
[1673856755030,7.59626829,1541.0,1540.5,3.0]
[1673856755341,1.10663829,1541.0,1540.6,4.46877862]
[1673856755814,1.10663829,1541.0,1540.9,3.27278678]
[1673856756003,1.10663829,1541.0,1540.9,6.27278678]
[1673856756216,7.59618829,1541.0,1540.9,3.69717844]
[1673856756432,1.10663829,1541.0,1540.9,0.69717844]
[1673856756604,1.10663829,1541.0,1540.9,0.76689628]
[1673856757271,1.10663829,1541.0,1540.9,0.69717844]
[1673856757676,1.07163829,1541.0,1540.9,0.69717844]
[1673856757897,1.03463829,1541.0,1540.9,0.69717844]
[1673856758537,0.95142564,1541.1,1540.9,6.708]
[1673856758706,7.68603059,1541.3,1541.0,9.708]
[1673856758707,3.61252233,1541.3,1541.0,9.708]
[1673856759029,6.4882,1541.3,1541.1,0.9708]
[1673856759234,6.4882,1541.3,1541.0,3.0]
[1673856759826,6.4882,1541.3,1540.4,1.666]
[1673856759827,6.4882,1541.3,1540.6,4.32034082]
[1673856759968,6.4882,1541.3,1540.6,0.3]
[1673856760425,6.4882,1541.3,1540.4,4.31965339]
[1673856760426,6.4752,1541.3,1540.4,4.31965339]
[1673856760641,6.4752,1541.3,1539.7,56.60291611]
[1673856760642,24.60813198,1541.3,1540.2,4.0142503]
[1673856760826,32.4498,1540.9,1540.0,1.8]
[1673856761495,32.4498,1540.9,1539.6,1.36]
[1673856761702,32.45825,1540.5,1539.6,1.36]
[1673856762100,32.45825,1540.5,1539.5,1.3]
[1673856762329,32.45825,1540.5,1539.1,1.373]
[1673856762330,36.57555642,1540.5,1539.1,1.373]
[1673856762663,47.44868191,1540.5,1539.5,0.0133818]
[1673856762884,33.44868191,1540.5,1539.5,1.8e-06]
[1673856763031,0.95908191,1540.3,1539.0,1.393]
[1673856763399,0.95908191,1540.3,1539.0,4.12786565]
[1673856763400,38.95596,1540.2,1539.0,4.12786565]
[1673856763570,46.1288818,1540.2,1539.1,0.41278657]
[1673856763765,0.95870419,1540.1,1538.9,1.393]
[1673856763982,32.47287,1539.8,1538.9,1.393]
[1673856764437,25.97827,1539.8,1538.9,5.52323622]
[1673856764835,25.97827,1539.8,1538.9,1.393]
[1673856765025,25.97827,1539.8,1539.0,10.83823622]
[1673856765237,25.97827,1539.8,1539.1,1.08382362]
[1673856765765,25.97827,1539.8,1538.9,8.52323622]
[1673856766011,25.97827,1539.8,1539.2,3.27278678]
[1673856766234,25.97827,1539.8,1539.3,3.27278678]
[1673856766634,29.25105678,1539.8,1538.0,3.763]
[1673856766843,4.13023622,1539.7,1538.7,3.27278678]
[1673856767079,10.62312379,1539.8,1538.8,3.60006546]
[1673856767249,10.62312379,1539.8,1538.9,3.27278678]
[1673856767250,25.98412,1539.4,1538.9,3.27278678]
[1673856767497,25.98412,1539.4,1539.0,3.27278678]
[1673856767838,25.98412,1539.4,1539.1,3.27278678]
[1673856767991,6.49534,1539.6,1539.3,3.27278678]
[1673856768208,12.99206,1539.4,1538.9,1.462]
[1673856768455,12.99206,1539.4,1539.1,3.27278678]
[1673856769041,12.99206,1539.4,1538.5,5.63134012]
[1673856769254,12.99206,1539.4,1538.5,1.50383825]
[1673856769461,16.26484678,1539.4,1538.5,1.50383825]
[1673856769934,25.98988,1539.1,1538.5,1.50383825]
[1673856770145,25.98988,1539.1,1538.5,1.65422207]
[1673856770521,25.98988,1539.1,1538.8,2.5]
[1673856770724,19.49241,1539.1,1538.8,0.78045069]
[1673856770987,19.49241,1539.1,1538.9,3.27278678]
[1673856771143,19.49241,1539.1,1539.0,3.27278678]
[1673856771355,6.49705,1539.2,1539.0,3.60006546]
[1673856771616,6.49633,1539.4,1539.1,3.27278678]
[1673856771831,6.49633,1539.4,1539.3,3.27278678]
[1673856772140,6.49603,1539.5,1539.3,3.27278678]
[1673856772356,13.65229306,1539.9,1539.4,3.27278678]
[1673856772357,6.49464,1539.8,1539.4,3.27278678]
[1673856772569,13.65229306,1539.9,1539.7,3.27278678]
[1673856772721,13.65229306,1539.9,1539.8,3.27278678]
[1673856772930,20.14644306,1539.9,1539.8,0.69506318]
[1673856773192,7.15814306,1539.9,1539.8,0.69506318]
[1673856773602,4.65814306,1539.9,1539.8,0.69506318]
[1673856773770,4.65814306,1539.9,1539.8,0.7645695]
[1673856773983,4.65814306,1539.9,1539.8,2.0645695]
[1673856774237,4.63814306,1539.9,1539.8,5.0645695]
[1673856774558,3.8601991,1540.2,1539.9,9.98078678]
[1673856774768,6.49077,1540.7,1540.1,9.98078678]
[1673856774769,3.22418781,1540.6,1540.1,9.98078678]
[1673856775041,3.22418781,1540.6,1540.5,3.27278678]
[1673856775218,6.4898,1540.9,1540.7,3.27278678]
[1673856775397,8.93500411,1541.5,1541.4,3.27278678]
[1673856775578,8.93500411,1541.5,1540.7,6.49043]
[1673856775579,3.43409205,1541.2,1541.0,12.34280686]
[1673856775788,9.92254205,1541.2,1540.8,0.9162824]
[1673856776044,3.43409205,1541.2,1541.1,3.27278678]
[1673856776733,15.54710296,1541.2,1541.1,3.27278678]
[1673856776983,9.05865296,1541.2,1541.1,3.27278678]
[1673856777410,15.54710296,1541.2,1541.1,3.27278678]
[1673856777617,15.54710296,1541.2,1541.1,4.57278678]
[1673856778154,15.54710296,1541.2,1540.3,2.5]
[1673856778362,15.54710296,1541.2,1540.8,2.5]
[1673856778807,15.54710296,1541.2,1540.6,1.3]
[1673856778939,15.94375639,1541.2,1540.6,4.57278678]
[1673856779319,15.94375639,1541.2,1540.9,3.27278678]
[1673856779461,15.94375639,1541.2,1540.7,2.5]
[1673856779462,15.94375639,1541.2,1541.0,3.27278678]
[1673856779674,9.45530639,1541.2,1541.1,3.27278678]
[1673856780127,2.96685639,1541.2,1541.1,3.27278678]
[1673856780341,1.01982829,1541.3,1541.1,3.27278678]
[1673856780572,1.01982829,1541.3,1541.2,3.27278678]
[1673856781201,13.99586829,1541.3,1541.2,3.27278678]
[1673856781514,13.99586829,1541.3,1541.1,2.5]
[1673856781672,13.99586829,1541.3,1541.1,5.77278678]
[1673856782619,13.99586829,1541.3,1541.2,3.27278678]
[1673856782782,17.19586829,1541.3,1541.2,3.27278678]
[1673856783006,4.24555529,1541.3,1541.2,3.27278678]
[1673856783168,17.22159529,1541.3,1541.1,1.53426891]
[1673856785057,13.56236484,1541.2,1541.1,1.53426891]
[1673856785509,0.58546484,1541.2,1541.1,4.96048258]
[1673856785702,4.24555529,1541.3,1541.1,4.96048258]
[1673856786048,4.24555529,1541.3,1541.2,3.27278678]
[1673856786878,16.201767,1541.3,1541.2,3.27278678]
[1673856787514,16.15937167,1541.3,1541.1,1.53426891]
[1673856787731,16.15937167,1541.3,1541.2,3.27278678]
[1673856788111,16.15937167,1541.3,1541.1,1.53426891]
[1673856788512,22.64739167,1541.3,1541.1,1.53426891]
[1673856789250,3.18333167,1541.3,1541.2,3.27278678]
[1673856790335,3.167e-05,1541.3,1541.2,3.27278678]
[1673856790526,0.069,1541.5,1541.2,6.27278678]
[1673856790740,0.069,1541.5,1541.4,3.27278678]
[1673856790976,0.069,1541.5,1541.4,1.55627812]
[1673856791185,0.069,1541.5,1541.4,1.71190593]
[1673856791186,6.55618,1541.5,1541.4,1.71190593]
[1673856791400,0.069,1541.5,1541.4,1.71190593]
[1673856791808,0.069,1541.5,1541.4,1.55627812]
[1673856791977,6.55618,1541.5,1541.4,1.55627812]